Workbook

Sheet Contents
F2: =Workbook.Title -> TAF Calculation
A4: Information
A6: Title | B6: TAF Calculation
A7: Project case code
A8: Objective | B8: Calculate Tax Adjustment Factor for derivation of ALF for 900 MHz and 1800 MHz spectrum
A9: Version | B9: Version 2
A10: Status | B10: Approved for release
A12: Confidentiality status | B12: No confidential data
A13: Release date | B13: 2015-09-01
A15: Contents
A17: Sheet | B17: Description | D17: Status | E17: Notes
A18: Contents | B18: This contents sheet | D18: Approved for release
A19: Style Guidelines | B19: A guide to the styles used in this workbook | D19: Approved for release
A20: TAF Calculation | B20: Calculation of TAF | D20: Approved for release
A21: Average Tax rate | B21: Calculates the average tax rate that produces the same TAF as that calculated in "TAF calculation" sheet | D21: Approved for release
A23: Differences compared to Version 1
A25: An earlier spreadsheet, Version 1, was made available when the October 2013 consultation was published.
A26: See: | B26: http://www.ofcom.org.uk/static/models/alf.xlsm
A28: The differences in the "TAF calculation" sheet in Version 2 compared to Version 1 are:
A29: Updated inputs for: | B29: Real post discount rate (cell B5); Main corporate tax rates (cells C6:V6); and Annual inflation assumption (cell B8)
A30: Different labels for: | B30: Real post tax discount rate (cell A5), which was previously labelled as Real post tax cost of capital; and different years, 2015/16 to 2034/35 (cells C4:V4), which were previously labelled as 2013/14 to 2032/33.
A31: Omitted calculation: | B31: The calculation of the base level of ALFs is no longer shown (the formula to derive these ALFs is set out in Section 6 of the Statement).
A33: The "Average Tax rate" sheet has been included in Version 2
A35: Terms and conditions
A37: The terms and conditions on which OFCOM is making available the model are set out below.
A39: The TAF Calculation model has been created solely for the purpose of deriving ALF for 900 MHz and 1800 MHz spectrum, according to the methodology described in Section 6 of the Statement.
A41: All right, title and interest in the provided model (the ‘Model’) are owned by OFCOM. Such title and interest is protected by United Kingdom intellectual property laws and international treaty provisions. While you may freely use the Model for the purposes for which it is provided, as set out in the accompanying model documentation, it is not to be modified in any way or used for commercial gain or otherwise without the prior written permission of OFCOM.
A42: No representation or warranty is given as to the accuracy, completeness or correctness of the provided Model and it is provided 'as is'. It is provided without any representation or endorsement made and without warranty of any kind, whether express or implied, including but not limited to the implied warranties of satisfactory quality, fitness for a particular purpose, non-infringement, compatibility, security and accuracy.
A44: OFCOM does not accept any responsibility for any loss, disruption or damage to your data or your computer system which may occur whilst using the Model or material derived from the Model. OFCOM does not warrant that the functions contained in the Model will be uninterrupted or error free. Also, OFCOM does not warrant that defects will be corrected, or that the Model provided is free of viruses.
A46: In no event will OFCOM be liable for any loss or damage including, without limitation, indirect or consequential loss or damage, or any loss or damages whatsoever arising from use or loss of use of, data or profits arising out of or in connection with the use or otherwise of the provided Model. By using this Model, you agree to the above.

Sheet Style Guidelines
H2: Style Guidelines
A3: NB Use Window Unfreeze Panes (on each worksheet) to have row 1 scroll with the rest of the worksheet
A5: Styles
B8: Input | C8: 100 | E8: An input to the model that it is expected the user will change (change at will)
B10: Output | C10: 100 | E10: A key result from this part of the model (in particular one that will be used elsewhere in the model)
B12: Highlight | C12: 100 | E12: A cell that is highlighted for uncertainty
B14: Note or Source | C14: Note | E14: A note (NB smaller than standard font size)
B16: Un-format | E16: Going back to default Excel formatting
B18: Advanced user styles
B20: Input assumption | C20: 100 | E20: An input to the model that it is expected the user will change (change at will)
B22: Input Data | C22: 100 | E22: A piece of real data (only change if you have better data)
B24: Checksum | C24: 0 | E24: A side calculation intended solely to cross check a result (and which therefore should not be referenced anywhere else in the model)
B26: Note | C26: Note | E26: A note (NB smaller than standard font size)
B28: Source | C28: Source | E28: A source
B30: Named range | C30: Name | E30: An Excel Name applying to one or more adjacent cells (use Insert Name Create to actually create the Excel Names)
B32: H1 | C32: Title | E32: Heading level 1
B34: H2 | C34: Title | E34: Heading level 2
B36: H3 | C36: Title | E36: Heading level 3
B38: H4 | C38: Title | E38: Heading level 4

Sheet TAF calculation
A1: Calculation of tax adjustment factor for ALF
A3: Input assumptions
C4: 2015/16 | D4: 2016/17 | E4: 2017/18 | F4: 2018/19 | G4: 2019/20 | H4: 2020/21 | I4: 2021/22 | J4: 2022/23 | K4: 2023/24 | L4: 2024/25 | M4: 2025/26 | N4: 2026/27 | O4: 2027/28 | P4: 2028/29 | Q4: 2029/30 | R4: 2030/31 | S4: 2031/32 | T4: 2032/33 | U4: 2033/34 | V4: 2034/35
A5: Real post tax discount rate | B5: 0.018
A6: Main corporate tax rate | C6: 0.2 | D6: 0.2 | E6: 0.19 | F6: 0.19 | G6: 0.19 | H6: 0.18 | I6: 0.18 | J6: 0.18 | K6: 0.18 | L6: 0.18 | M6: 0.18 | N6: 0.18 | O6: 0.18 | P6: 0.18 | Q6: 0.18 | R6: 0.18 | S6: 0.18 | T6: 0.18 | U6: 0.18 | V6: 0.18
A7: Duration of ALF calculation of 20 years | B7: 20
A8: Annual inflation assumption | B8: 0.02
A9: Inflation index | C9: 1 | D9: =C9*(1+$B$8) -> 1.02 | E9: 1.0404 | F9: 1.061208 | G9: 1.08243216 | H9: 1.104080803 | I9: 1.126162419 | J9: 1.148685668 | K9: 1.171659381 | L9: 1.195092569 | M9: 1.21899442 | N9: 1.243374308 | O9: 1.268241795 | P9: 1.29360663 | Q9: 1.319478763 | R9: 1.345868338 | S9: 1.372785705 | T9: 1.400241419 | U9: 1.428246248 | V9: 1.456811173
A11: All in real terms. Payments assumed to occur at the beginning of the year.
A13: Run macro to calculate Tax Adjustment Factor if necessary
A15: =IF(ROUND(Check_TAF,5)=0,"Currently no need to run macro","NEED TO RUN MACRO") -> Currently no need to run macro
A18: This macro iteratively calculates the Tax Adjustment Factor, which reflect the more advantageous tax treatment of ALF compared to lump sum payments.
A19: The macro hard codes the ALF figure assumed in the calculation of the tax adjustment factor.
A21: Calculation of Tax Adjustment Factor
B22: PV | C22: 2013/14 | D22: 2014/15 | E22: 2015/16 | F22: 2016/17 | G22: 2017/18 | H22: 2018/19 | I22: 2019/20 | J22: 2020/21 | K22: 2021/22 | L22: 2022/23 | M22: 2023/24 | N22: 2024/25 | O22: 2025/26 | P22: 2026/27 | Q22: 2027/28 | R22: 2028/29 | S22: 2029/30 | T22: 2030/31 | U22: 2031/32 | V22: 2032/33
A23: Lump sum assumed for tax adjustment factor calculation | B23: 100
A24: Lump sum value amortised (falls over time with inflation) | B24: =NPV($B$5,D24:V24)+C24 -> 71.59408331 | C24: =($B$23/$B$7)/C$9 -> 5 | D24: 4.901960784 | E24: 4.805843906 | F24: 4.711611673 | G24: 4.61922713 | H24: 4.528654049 | I24: 4.439856911 | J24: 4.352800893 | K24: 4.267451856 | L24: 4.183776329 | M24: 4.101741499 | N24: 4.021315195 | O24: 3.942465878 | P24: 3.865162625 | Q24: 3.789375123 | R24: 3.71507365 | S24: 3.642229069 | T24: 3.570812812 | U24: 3.500796875 | V24: 3.432153799
A25: Tax benefits of amortisation of lump sum payment | B25: =NPV($B$5,D25:V25)+C25 -> 13.21728629 | C25: =C24*C$6 -> 1 | D25: 0.9803921569 | E25: 0.9131103422 | F25: 0.8952062178 | G25: 0.8776531547 | H25: 0.8151577288 | I25: 0.799174244 | J25: 0.7835041608 | K25: 0.7681413341 | L25: 0.7530797393 | M25: 0.7383134699 | N25: 0.7238367352 | O25: 0.709643858 | P25: 0.6957292726 | Q25: 0.6820875221 | R25: 0.668713257 | S25: 0.6556012323 | T25: 0.6427463062 | U25: 0.6301434375 | V25: 0.6177876838
A27: =A23 -> Lump sum assumed for tax adjustment factor calculation | B27: =B23 -> 100
A28: Tax benefits for annual licence fees | B28: =NPV($B$5,D28:V28)+C28 -> 19.57018543 | C28: =C30*C$6 -> 1.253307851 | D28: 1.253307851 | E28: 1.190642458 | F28: 1.190642458 | G28: 1.190642458 | H28: 1.127977066 | I28: 1.127977066 | J28: 1.127977066 | K28: 1.127977066 | L28: 1.127977066 | M28: 1.127977066 | N28: 1.127977066 | O28: 1.127977066 | P28: 1.127977066 | Q28: 1.127977066 | R28: 1.127977066 | S28: 1.127977066 | T28: 1.127977066 | U28: 1.127977066 | V28: 1.127977066
A29: less Tax benefits of amortisation of lump sum payment | B29: =-B25 -> -13.21728629
A30: Annual licence fee | B30: =NPV($B$5,D30:V30)+C30 -> 106.3528991 | C30: 6.266539254 | D30: =ALF_for_TAF_calc -> 6.266539254 | E30: 6.266539254 | F30: 6.266539254 | G30: 6.266539254 | H30: 6.266539254 | I30: 6.266539254 | J30: 6.266539254 | K30: 6.266539254 | L30: 6.266539254 | M30: 6.266539254 | N30: 6.266539254 | O30: 6.266539254 | P30: 6.266539254 | Q30: 6.266539254 | R30: 6.266539254 | S30: 6.266539254 | T30: 6.266539254 | U30: 6.266539254 | V30: 6.266539254
A31: Tax Adjustment Factor | B31: =1+(B28+B29)/B27 -> 1.063528991
A32: Check=0 | B32: =SUM(B27:B29)-B30 -> 0

Sheet Average Tax rate
A1: Calculation of Average Tax rate
A4: Run macro to calculate Average Tax rate if necessary
A6: =IF(ROUND(Check_Tax,5)=0,"Currently no need to run macro","NEED TO RUN MACRO") -> Currently no need to run macro
A9: Input assumptions
A11: Real post tax discount rate | B11: ='TAF calculation'!B5 -> 0.018
A12: Average corporate tax rate | B12: 0.1827708714
A13: ALF annuity period (years) | B13: ='TAF calculation'!B7 -> 20
A14: Annual inflation assumption | B14: ='TAF calculation'!B8 -> 0.02
B16: year | C16: 1 | D16: =C16+1 -> 2 | E16: =D16+1 -> 3 | F16: 4 | G16: 5 | H16: 6 | I16: 7 | J16: 8 | K16: 9 | L16: 10 | M16: 11 | N16: 12 | O16: 13 | P16: 14 | Q16: 15 | R16: 16 | S16: 17 | T16: 18 | U16: 19 | V16: 20
A17: Inflation index | C17: 1 | D17: =C17*(1+$B$14) -> 1.02 | E17: =D17*(1+$B$14) -> 1.0404 | F17: 1.061208 | G17: 1.08243216 | H17: 1.104080803 | I17: 1.126162419 | J17: 1.148685668 | K17: 1.171659381 | L17: 1.195092569 | M17: 1.21899442 | N17: 1.243374308 | O17: 1.268241795 | P17: 1.29360663 | Q17: 1.319478763 | R17: 1.345868338 | S17: 1.372785705 | T17: 1.400241419 | U17: 1.428246248 | V17: 1.456811173
A19: Post tax NPV of lump sum payment (where lump sum payment = 100 in arbitary units)
B20: PV | C20: 2013/14 | D20: 2014/15 | E20: 2015/16 | F20: 2016/17 | G20: 2017/18 | H20: 2018/19 | I20: 2019/20 | J20: 2020/21 | K20: 2021/22 | L20: 2022/23 | M20: 2023/24 | N20: 2024/25 | O20: 2025/26 | P20: 2026/27 | Q20: 2027/28 | R20: 2028/29 | S20: 2029/30 | T20: 2030/31 | U20: 2031/32 | V20: 2032/33
A21: Lump sum assumed for tax adjustment factor calculation | B21: 100
A22: Amortisation of lump sum (falls over time with inflation) | C22: =($B$21/$B$13)/C$17 -> 5 | D22: 4.901960784 | E22: 4.805843906 | F22: 4.711611673 | G22: 4.61922713 | H22: 4.528654049 | I22: 4.439856911 | J22: 4.352800893 | K22: 4.267451856 | L22: 4.183776329 | M22: 4.101741499 | N22: 4.021315195 | O22: 3.942465878 | P22: 3.865162625 | Q22: 3.789375123 | R22: 3.71507365 | S22: 3.642229069 | T22: 3.570812812 | U22: 3.500796875 | V22: 3.432153799
A23: PV of amortised lump sum | B23: =NPV($B$11,D22:V22)+C22 -> 71.59408331
A24: PV of tax benefits of amortisation of lump sum payment | B24: =B23*B12 -> 13.085313
A25: lump sum payment, net of PV of tax benefit | B25: =B21-B24 -> 86.914687
A28: Tax Adjustment Factor (TAF) | B28: =B25/(B21*(1-B12)) -> 1.06352899
A29: Check=0 | B29: =B28-TAF -> -9.408360757e-10
